fUSD/lending_fUSD_20250607
["ID","MTS","AMOUNT","RATE_DAILY","PERIOD"]
[364915205,1749297705720,-162.693074,0.000194,2]
[364915206,1749297705750,-162.693074,0.000194,2]
[364915207,1749297705777,-151.0,0.000194,2]
[364915208,1749297705805,-151.0,0.000194,2]
[364915209,1749297705832,-151.0,0.000194,2]
[364915210,1749297705860,-572.91785,0.000194,2]
[364915211,1749297705888,-572.91785,0.000194,2]
[364915212,1749297705915,-151.0,0.000194,2]
[364915213,1749297705946,-200.378318,0.000194,2]
[364915214,1749297705978,-1439.761915,0.000194,2]
[364915215,1749297706005,-1439.761915,0.000194,2]
[364915216,1749297706032,-1584.036109,0.000194,2]
[364915217,1749297706059,-1584.036109,0.000194,2]
[364915218,1749297706086,-378.083416,0.000194,2]
[364915219,1749297706112,-378.083416,0.000194,2]
[364915220,1749297706137,-205.49714,0.000194,2]
[364915221,1749297706163,-326.309248,0.000194,2]
[364915222,1749297706189,-205.49714,0.000194,2]
[364915223,1749297706214,-326.309248,0.000194,2]
[364915224,1749297706247,-151.0,0.000194,2]
[364915225,1749297706274,-151.0,0.000194,2]
[364915226,1749297706302,-161.295383,0.000194,2]
[364915227,1749297706330,-161.295383,0.000194,2]
[364915228,1749297706356,-151.0,0.000194,2]
[364915229,1749297706383,-151.0,0.000194,2]
[364915230,1749297706411,-151.0,0.000194,2]
[364915231,1749297706438,-151.0,0.000194,2]
[364915232,1749297706464,-173.567389,0.000194,2]
[364915233,1749297706490,-173.567389,0.000194,2]
[364915234,1749297706732,-150.0,0.000194,2]
[364915235,1749297706771,-1621.503584,0.000194,2]
[364915236,1749297706806,-1621.503584,0.000194,2]
[364915237,1749297706836,-336.770364,0.000194,2]
[364915238,1749297706864,-336.770364,0.000194,2]
[364915239,1749297706893,-200.168376,0.000194,2]
[364915240,1749297706923,-951.154587,0.000194,2]
[364915241,1749297706952,-200.168376,0.000194,2]
[364915242,1749297706981,-951.154587,0.000194,2]
[364915243,1749297707008,-151.0,0.000194,2]
[364915244,1749297707038,-196.779148,0.000194,2]
[364915245,1749297707067,-196.779148,0.000194,2]
[364915246,1749297707095,-151.0,0.000194,2]
[364915247,1749297707120,-151.0,0.000194,2]
[364915248,1749297707146,-151.0,0.000194,2]
[364915249,1749297707173,-150.0,0.00019401,2]
[364915250,1749297707199,-151.0,0.00019403,2]
[364915251,1749297707226,-151.0,0.00019403,2]
[364915252,1749297707253,-188.641033,0.00019403,2]
[364915253,1749297707279,-151.0,0.00019403,2]
[364915254,1749297707311,-222.13349,0.00019403,2]
[364915255,1749297707340,-222.13349,0.00019403,2]
[364915256,1749297707368,-307.314938,0.00019403,2]
[364915257,1749297707394,-307.314938,0.00019403,2]
[364915258,1749297707424,-150.0,0.00019403,2]
[364915259,1749297707452,-150.0,0.00019403,2]
[364915260,1749297707480,-420.0,0.00019411,2]
[364915261,1749297707512,-150.0,0.00019418,2]
[364915262,1749297707540,-150.0,0.00019418,2]
[364915263,1749297707569,-1967.0,0.00019419,2]
[364915264,1749297707597,-2212.0,0.00019419,2]
[364915265,1749297707625,-1000.0,0.00019421,2]
[364915266,1749297707654,-1000.0,0.00019421,2]
[364915267,1749297707683,-1000.0,0.00019421,2]
[364915268,1749297707711,-150.0,0.00019422,2]
[364915269,1749297707737,-150.0,0.00019425,2]
[364915270,1749297707765,-150.0,0.00019426,2]
[364915271,1749297707795,-150.0,0.00019436,2]
[364915272,1749297707824,-1981.21349315,0.00019446,2]
[364915273,1749297707855,-2213.22230757,0.00019446,2]
[364915274,1749297707883,-150.0,0.00019447,2]
[364915275,1749297707912,-150.0,0.00019448,2]
[364915276,1749297707941,-150.0,0.00019449,2]
[364915277,1749297707967,-150.0,0.00019453,2]
[364915278,1749297707995,-150.0,0.0001946,2]
[364915279,1749297708024,-150.0,0.0001947,2]
[364915280,1749297708052,-150.0,0.00019475,2]
[364915281,1749297708080,-150.0,0.00019481,2]
[364915282,1749297708108,-150.0,0.00019482,2]
[364915283,1749297708136,-326.309248,0.00019487,2]
[364915284,1749297708163,-326.309248,0.00019487,2]
[364915285,1749297708190,-1047.039356,0.00019487,2]
[364915286,1749297708217,-1047.039356,0.00019487,2]
[364915287,1749297708247,-458.06760009,0.0001949,2]
[364915288,1749297708273,-151.0,0.00019498,2]
[364915289,1749297708301,-151.0,0.00019498,2]
[364915290,1749297708329,-151.0,0.00019498,2]
[364915291,1749297708357,-151.0,0.00019498,2]
[364915292,1749297708383,-151.0,0.00019498,2]
[364915293,1749297708415,-151.0,0.00019498,2]
[364915294,1749297708443,-347.722307,0.00019498,2]
[364915295,1749297708470,-347.722307,0.00019498,2]
[364915296,1749297708497,-151.0,0.00019498,2]
[364915297,1749297708523,-693.530733,0.00019498,2]
[364915298,1749297708551,-693.530733,0.00019498,2]
[364915299,1749297708577,-151.0,0.00019498,2]
[364915300,1749297708603,-151.0,0.00019498,2]
[364915301,1749297708630,-151.0,0.00019498,2]
[364915302,1749297708656,-151.0,0.00019498,2]
[364915303,1749297708684,-1439.761915,0.00019498,2]
[364915304,1749297708712,-1439.761915,0.00019498,2]
[364915305,1749297708739,-1584.036109,0.00019498,2]
[364915306,1749297708766,-1584.036109,0.00019498,2]
[364915307,1749297708794,-378.083416,0.00019498,2]
[364915308,1749297708820,-378.083416,0.00019498,2]
[364915309,1749297708847,-205.49714,0.00019498,2]
[364915310,1749297708873,-205.49714,0.00019498,2]
[364915311,1749297708900,-151.0,0.00019498,2]
[364915312,1749297708938,-161.295383,0.00019498,2]
[364915313,1749297708970,-161.295383,0.00019498,2]
[364915314,1749297708998,-667.336566,0.00019498,2]
[364915315,1749297709024,-151.0,0.00019498,2]
[364915316,1749297709051,-667.336566,0.00019498,2]
[364915317,1749297709078,-151.0,0.00019498,2]
[364915318,1749297709105,-151.0,0.00019498,2]
[364915319,1749297709132,-150.0,0.00019501,2]
[364915320,1749297709160,-836.0,0.00019506,2]
[364915321,1749297709189,-1680.0,0.00019507,2]
[364915322,1749297709217,-289.25165423,0.00019521,2]
[364915323,1749297709248,-1099.29619932,0.00019521,2]
[364915324,1749297709276,-1000.0,0.00019521,2]
[364915325,1749297709305,-1000.0,0.00019521,2]
[364915326,1749297709334,-1000.0,0.00019521,2]
[364915327,1749297709363,-1000.0,0.00019521,2]
[364915328,1749297709391,-151.0,0.00019525,2]
[364915329,1749297709420,-151.0,0.00019525,2]
[364915330,1749297709449,-151.0,0.00019525,2]
[364915331,1749297709480,-151.0,0.00019525,2]
[364915332,1749297709508,-151.0,0.00019525,2]
[364915333,1749297709536,-151.0,0.00019525,2]
[364915334,1749297709567,-152.81944,0.00019525,2]
[364915335,1749297709594,-151.0,0.00019525,2]
[364915336,1749297709621,-151.0,0.00019525,2]
[364915337,1749297709647,-224.860027,0.00019525,2]
[364915338,1749297709676,-224.860027,0.00019525,2]
[364915339,1749297709702,-151.0,0.00019525,2]
[364915340,1749297709728,-151.0,0.00019525,2]
[364915341,1749297709755,-314.743866,0.00019525,2]
[364915342,1749297709783,-314.743866,0.00019525,2]
[364915343,1749297709810,-151.0,0.00019525,2]
[364915344,1749297709837,-151.0,0.00019525,2]
[364915345,1749297709865,-196.712187,0.00019525,2]
[364915346,1749297709891,-225.218056,0.00019525,2]
[364915347,1749297709918,-225.218056,0.00019525,2]
[364915348,1749297709944,-151.0,0.00019525,2]
[364915349,1749297709970,-209.089398,0.00019525,2]
[364915350,1749297709996,-151.0,0.00019525,2]
[364915351,1749297710250,-155.562117,0.00019525,2]
[364915352,1749297710278,-155.562117,0.00019525,2]
[364915353,1749297710304,-171.882811,0.00019525,2]
[364915354,1749297710329,-171.882811,0.00019525,2]
[364915355,1749297710353,-961.409907,0.00019525,2]
[364915356,1749297710379,-961.409907,0.00019525,2]
[364915357,1749297710404,-162.693074,0.00019525,2]
[364915358,1749297710432,-162.693078,0.00019525,2]
[364915359,1749297710458,-572.91785,0.00019525,2]
[364915360,1749297710484,-572.917847,0.00019525,2]
[364915361,1749297710509,-326.309248,0.00019525,2]
[364915362,1749297710536,-326.309248,0.00019525,2]
[364915363,1749297710563,-151.0,0.00019525,2]
[364915364,1749297710590,-151.0,0.00019525,2]
[364915365,1749297710615,-1047.039356,0.00019525,2]
[364915366,1749297710641,-1047.039356,0.00019525,2]
[364915367,1749297710668,-151.0,0.00019525,2]
[364915368,1749297710695,-222.13349,0.00019525,2]
[364915369,1749297710723,-222.13349,0.00019525,2]
[364915370,1749297710748,-307.314938,0.00019525,2]
[364915371,1749297710774,-307.314938,0.00019525,2]
[364915372,1749297710803,-173.567389,0.00019525,2]
[364915373,1749297710829,-173.567387,0.00019525,2]
[364915374,1749297710855,-1621.503584,0.00019525,2]
[364915375,1749297710882,-1621.503584,0.00019525,2]
[364915376,1749297710908,-336.770364,0.00019525,2]
[364915377,1749297710933,-336.770364,0.00019525,2]
[364915378,1749297710958,-200.168376,0.00019525,2]
[364915379,1749297710983,-951.154587,0.00019525,2]
[364915380,1749297711009,-200.168376,0.00019525,2]
[364915381,1749297711034,-951.154587,0.00019525,2]
[364915382,1749297711059,-151.0,0.00019525,2]
[364915383,1749297711085,-196.779148,0.00019525,2]
[364915384,1749297711112,-196.779148,0.00019525,2]
[364915385,1749297711138,-157.453017,0.00019525,2]
[364915386,1749297711164,-151.0,0.00019525,2]
[364915387,1749297711190,-1000.0,0.00019526,2]
[364915388,1749297711217,-150.0,0.00019535,2]
[364915389,1749297711248,-300.78,0.00019536,2]
[364915390,1749297711275,-302.96,0.00019536,2]
[364915391,1749297711304,-302.96,0.00019536,2]
[364915392,1749297711331,-150.0,0.00019543,2]
[364915393,1749297711358,-150.0,0.00019547,2]
[364915394,1749297711386,-151.0,0.00019551,2]
[364915395,1749297711414,-151.0,0.00019551,2]
[364915396,1749297711440,-1584.036109,0.00019551,2]
[364915397,1749297711465,-1584.036109,0.00019551,2]
[364915398,1749297711492,-378.083416,0.00019551,2]
[364915399,1749297711517,-378.083416,0.00019551,2]
[364915400,1749297711544,-205.49714,0.00019551,2]
[364915401,1749297711571,-205.49714,0.00019551,2]
[364915402,1749297711597,-667.336566,0.00019551,2]
[364915403,1749297711625,-667.336566,0.00019551,2]
[364915404,1749297711652,-151.0,0.00019552,2]
[364915405,1749297711678,-230.922095,0.00019552,2]
[364915406,1749297711703,-364.623123,0.00019552,2]
[364915407,1749297711729,-364.623123,0.00019552,2]
[364915408,1749297711756,-300.61,0.00019557,2]
[364915409,1749297711785,-151.0,0.00019562,2]
[364915410,1749297711812,-151.0,0.00019562,2]
[364915411,1749297711841,-151.0,0.00019562,2]
[364915412,1749297711869,-191.753818,0.00019562,2]
[364915413,1749297711895,-191.753818,0.00019562,2]
[364915414,1749297711922,-151.0,0.00019562,2]
[364915415,1749297711948,-151.0,0.00019562,2]
[364915416,1749297711974,-151.0,0.00019562,2]
[364915417,1749297711999,-151.0,0.00019562,2]
[364915418,1749297712025,-151.0,0.00019562,2]
[364915419,1749297712051,-151.0,0.00019562,2]
[364915420,1749297712077,-151.0,0.00019562,2]
[364915421,1749297712102,-151.0,0.00019562,2]
[364915422,1749297712130,-1000.0,0.00019564,2]
[364915423,1749297712157,-150.0,0.0001957,2]
[364915424,1749297712181,-200.0,0.00019572,2]
[364915425,1749297712206,-200.0,0.00019572,2]
[364915426,1749297712231,-151.0,0.00019573,2]
[364915427,1749297712261,-1439.761915,0.00019573,2]
[364915428,1749297712287,-1439.761915,0.00019573,2]
[364915429,1749297712315,-151.0,0.00019573,2]
[364915430,1749297712342,-151.0,0.00019573,2]
[364915431,1749297712367,-151.0,0.00019577,2]
[364915432,1749297712394,-151.0,0.00019577,2]
[364915433,1749297712420,-151.0,0.00019577,2]
[364915434,1749297712447,-151.0,0.00019577,2]
[364915435,1749297712473,-151.0,0.00019577,2]
[364915436,1749297712501,-151.0,0.00019577,2]
[364915437,1749297712526,-151.0,0.00019577,2]
[364915438,1749297712554,-200.0,0.00019581,2]
[364915439,1749297712579,-150.0,0.00019581,2]
[364915440,1749297712606,-150.0,0.00019586,2]
[364915441,1749297712631,-186.578122,0.00019592,2]
[364915442,1749297712656,-186.578122,0.00019592,2]
[364915443,1749297712681,-151.0,0.00019592,2]
[364915444,1749297712706,-161.295383,0.00019592,2]
[364915445,1749297712731,-161.295383,0.00019592,2]
[364915446,1749297712756,-151.0,0.00019592,2]
[364915447,1749297712782,-151.0,0.00019592,2]
[364915448,1749297712808,-150.0,0.00019601,2]
[364915449,1749297712836,-150.0,0.00019603,2]
[364915450,1749297712861,-150.0,0.00019605,2]
[364915451,1749297712887,-150.0,0.00019607,2]
[364915452,1749297712913,-150.0,0.00019611,2]
[364915453,1749297712939,-150.0,0.00019612,2]
[364915454,1749297712965,-150.0,0.00019613,2]
[364915455,1749297712990,-202.3884,0.00019615,2]
[364915456,1749297713015,-202.3884,0.00019615,2]
[364915457,1749297713040,-151.0,0.00019615,2]
[364915458,1749297713065,-151.0,0.00019615,2]
[364915459,1749297713093,-305.81,0.00019615,2]
[364915460,1749297713121,-150.0,0.00019619,2]
[364915461,1749297713148,-150.0,0.00019623,2]
[364915462,1749297713174,-693.530733,0.00019626,2]
[364915463,1749297713199,-693.530733,0.00019626,2]
[364915464,1749297713226,-1621.503584,0.00019626,2]
[364915465,1749297713253,-1621.50357598,0.00019626,2]
[364915466,1749297713277,-336.770364,0.00019626,2]
[364915467,1749297713458,-336.770356,0.00019626,2]
[364915468,1749297713484,-200.168376,0.00019626,2]
[364915469,1749297713512,-951.154587,0.00019626,2]
[364915470,1749297713539,-200.168374,0.00019626,2]
[364915471,1749297713564,-951.154581,0.00019626,2]
[364915472,1749297713590,-151.0,0.00019626,2]
[364915473,1749297713616,-196.779148,0.00019626,2]
[364915474,1749297713640,-196.779146,0.00019626,2]
[364915475,1749297713666,-151.0,0.00019626,2]
[364915476,1749297713692,-150.0,0.00019628,2]
[364915477,1749297713717,-151.0,0.0001963,2]
[364915478,1749297713741,-151.0,0.0001963,2]
[364915479,1749297713767,-191.753818,0.0001963,2]
[364915480,1749297713795,-191.753818,0.0001963,2]
[364915481,1749297713821,-151.0,0.0001963,2]
[364915482,1749297713848,-232.622616,0.0001963,2]
[364915483,1749297713874,-280.007193,0.0001963,2]
[364915484,1749297713900,-151.0,0.0001963,2]
[364915485,1749297713925,-151.0,0.0001963,2]
[364915486,1749297713951,-151.0,0.0001963,2]
[364915487,1749297713976,-151.0,0.0001963,2]
[364915488,1749297714001,-151.0,0.0001963,2]
[364915489,1749297714026,-151.0,0.0001963,2]
[364915490,1749297714051,-151.0,0.0001963,2]
[364915491,1749297714076,-314.743866,0.0001963,2]
[364915492,1749297714102,-314.743866,0.0001963,2]
[364915493,1749297714128,-151.0,0.0001963,2]
[364915494,1749297714154,-151.0,0.0001963,2]
[364915495,1749297714179,-151.0,0.0001963,2]
[364915496,1749297714204,-347.722307,0.0001963,2]
[364915497,1749297714230,-347.722307,0.0001963,2]
[364915498,1749297714260,-151.0,0.0001963,2]
[364915499,1749297714285,-151.0,0.0001963,2]
[364915500,1749297714310,-151.0,0.0001963,2]
[364915501,1749297714336,-196.712187,0.0001963,2]
[364915502,1749297714361,-225.218056,0.0001963,2]
[364915503,1749297714386,-225.218056,0.0001963,2]
[364915504,1749297714412,-151.0,0.0001963,2]
[364915505,1749297714438,-151.0,0.0001963,2]
[364915506,1749297714465,-155.562117,0.0001963,2]
[364915507,1749297714491,-155.562117,0.0001963,2]
[364915508,1749297714519,-171.882811,0.0001963,2]
[364915509,1749297714548,-171.882811,0.0001963,2]
[364915510,1749297714574,-152.752099,0.0001963,2]
[364915511,1749297714600,-229.208143,0.0001963,2]
[364915512,1749297714626,-1584.036109,0.0001963,2]
[364915513,1749297714652,-1584.036109,0.0001963,2]
[364915514,1749297714677,-378.083416,0.0001963,2]
[364915515,1749297714704,-378.083416,0.0001963,2]
[364915516,1749297714729,-205.49714,0.0001963,2]
[364915517,1749297714756,-326.309248,0.0001963,2]
[364915518,1749297714782,-205.49714,0.0001963,2]
[364915519,1749297714808,-326.309246,0.0001963,2]
[364915520,1749297714834,-159.748696,0.0001963,2]
[364915521,1749297714859,-667.336566,0.0001963,2]
[364915522,1749297714884,-667.33657,0.0001963,2]
[364915523,1749297714908,-151.0,0.0001963,2]
[364915524,1749297714934,-1047.039356,0.0001963,2]
[364915525,1749297714961,-1047.039352,0.0001963,2]
[364915526,1749297714988,-151.0,0.0001963,2]
[364915527,1749297715013,-222.13349,0.0001963,2]
[364915528,1749297715038,-222.133491,0.0001963,2]
[364915529,1749297715063,-307.314938,0.0001963,2]
[364915530,1749297715089,-307.314931,0.0001963,2]
[364915531,1749297715114,-3410.0,0.00019631,2]
[364915532,1749297715141,-1000.0,0.00019634,2]
[364915533,1749297715166,-151.0,0.00019635,2]
[364915534,1749297715191,-1439.761915,0.00019635,2]
[364915535,1749297715218,-1439.761915,0.00019635,2]
[364915536,1749297715247,-151.0,0.00019635,2]
[364915537,1749297715272,-151.0,0.00019635,2]
[364915538,1749297715300,-150.0,0.00019635,2]
[364915539,1749297715326,-150.0,0.00019638,2]
[364915540,1749297715354,-150.0,0.0001964,2]
[364915541,1749297715383,-150.0,0.00019642,2]
[364915542,1749297715411,-168.0,0.00019649,2]
[364915543,1749297715441,-150.0,0.00019653,2]
[364915544,1749297715467,-836.0,0.00019658,2]
[364915545,1749297715492,-150.0,0.00019671,2]
[364915546,1749297715520,-150.0,0.00019672,2]
[364915547,1749297715547,-150.0,0.00019676,2]
[364915548,1749297715573,-168.0,0.00019685,2]
[364915549,1749297715598,-786.64429746,0.0001969,2]
[364915550,1749297715624,-151.0,0.00019694,2]
[364915551,1749297715649,-161.295383,0.00019694,2]
[364915552,1749297715676,-161.295383,0.00019694,2]
[364915553,1749297715701,-151.0,0.00019694,2]
[364915554,1749297715727,-151.0,0.00019694,2]
[364915555,1749297715752,-168.0,0.00019695,2]
[364915556,1749297715781,-150.0,0.00019697,2]
[364915557,1749297715808,-150.0,0.00019699,2]
[364915558,1749297715833,-150.0,0.00019702,2]
[364915559,1749297715858,-150.0,0.00019704,2]
[364915560,1749297715885,-150.0,0.00019704,2]
[364915561,1749297715911,-150.0,0.00019705,2]
[364915562,1749297715936,-168.0,0.00019712,2]
[364915563,1749297715964,-150.0,0.00019713,2]
[364915564,1749297715993,-150.0,0.00019721,2]
[364915565,1749297716018,-156.587,0.00019726,2]
[364915566,1749297716044,-1072.86784444,0.00019734,5]
[364915567,1749297716070,-151.0,0.00019735,2]
[364915568,1749297716096,-151.0,0.00019735,2]
[364915569,1749297716123,-151.0,0.00019735,2]
[364915570,1749297716148,-151.0,0.00019735,2]
[364915571,1749297716174,-287.757394,0.00019735,2]
[364915572,1749297716199,-151.0,0.00019735,2]
[364915573,1749297716224,-151.0,0.00019735,2]
[364915574,1749297716250,-151.0,0.00019735,2]
[364915575,1749297716275,-151.0,0.00019735,2]
[364915576,1749297716302,-151.0,0.00019735,2]
[364915577,1749297716332,-151.0,0.00019735,2]
[364915578,1749297716357,-153.360077,0.00019735,2]
[364915579,1749297716383,-224.860027,0.00019735,2]
[364915580,1749297716410,-224.860027,0.00019735,2]
[364915581,1749297716437,-186.578122,0.00019735,2]
[364915582,1749297716463,-186.578122,0.00019735,2]
[364915583,1749297716671,-151.0,0.00019735,2]
[364915584,1749297716713,-151.0,0.00019735,2]
[364915585,1749297716741,-151.0,0.00019735,2]
[364915586,1749297716768,-151.0,0.00019735,2]
[364915587,1749297716800,-347.722307,0.00019735,2]
[364915588,1749297716827,-347.722307,0.00019735,2]
[364915589,1749297716854,-151.0,0.00019735,2]
[364915590,1749297716880,-196.712187,0.00019735,2]
[364915591,1749297716907,-196.712187,0.00019735,2]
[364915592,1749297716934,-225.218056,0.00019735,2]
[364915593,1749297716961,-225.218056,0.00019735,2]
[364915594,1749297716987,-693.530733,0.00019735,2]
[364915595,1749297717012,-693.530733,0.00019735,2]
[364915596,1749297717040,-151.0,0.00019735,2]
[364915597,1749297717067,-152.187875,0.00019735,2]
[364915598,1749297717095,-364.623123,0.00019735,2]
[364915599,1749297717122,-364.623123,0.00019735,2]
[364915600,1749297717151,-155.562117,0.00019735,2]
[364915601,1749297717179,-155.562114,0.00019735,2]
[364915602,1749297717205,-171.882811,0.00019735,2]
[364915603,1749297717230,-171.882817,0.00019735,2]
[364915604,1749297717259,-168.0,0.00019736,2]
[364915605,1749297717286,-151.0,0.00019736,2]
[364915606,1749297717319,-151.0,0.00019736,2]
[364915607,1749297717345,-171.445012,0.00019736,2]
[364915608,1749297717371,-151.0,0.00019736,2]
[364915609,1749297717397,-151.0,0.00019736,2]
[364915610,1749297717427,-151.0,0.00019736,2]
[364915611,1749297717453,-151.0,0.00019736,2]
[364915612,1749297717478,-151.0,0.00019736,2]
[364915613,1749297717504,-151.0,0.00019736,2]
[364915614,1749297717532,-151.0,0.00019736,2]
[364915615,1749297717558,-151.0,0.00019736,2]
[364915616,1749297717584,-151.0,0.00019736,2]
[364915617,1749297717610,-151.0,0.00019736,2]
[364915618,1749297717636,-191.753818,0.00019736,2]
[364915619,1749297717664,-191.753818,0.00019736,2]
[364915620,1749297717692,-151.0,0.00019736,2]
[364915621,1749297717719,-151.0,0.00019736,2]
[364915622,1749297717746,-151.0,0.00019736,2]
[364915623,1749297717774,-151.0,0.00019736,2]
[364915624,1749297717801,-151.0,0.00019736,2]
[364915625,1749297717827,-151.0,0.00019736,2]
[364915626,1749297717854,-151.0,0.00019736,2]
[364915627,1749297717880,-151.0,0.00019736,2]
[364915628,1749297717908,-314.743866,0.00019736,2]
[364915629,1749297717935,-314.743866,0.00019736,2]
[364915630,1749297717961,-151.0,0.00019736,2]
[364915631,1749297717987,-151.0,0.00019736,2]
[364915632,1749297718012,-151.0,0.00019736,2]
[364915633,1749297718037,-151.0,0.00019736,2]
[364915634,1749297718062,-151.0,0.00019736,2]
[364915635,1749297718086,-151.0,0.00019736,2]
[364915636,1749297718112,-151.0,0.00019736,2]
[364915637,1749297718137,-1439.761915,0.00019736,2]
[364915638,1749297718163,-1439.761915,0.00019736,2]
[364915639,1749297718188,-1584.036109,0.00019736,2]
[364915640,1749297718212,-1584.036107,0.00019736,2]
[364915641,1749297718237,-378.083416,0.00019736,2]
[364915642,1749297718268,-378.08341,0.00019736,2]
[364915643,1749297718292,-205.49714,0.00019736,2]
[364915644,1749297718319,-205.497141,0.00019736,2]
[364915645,1749297718346,-151.0,0.00019736,2]
[364915646,1749297718373,-161.295383,0.00019736,2]
[364915647,1749297718400,-161.295383,0.00019736,2]
[364915648,1749297718426,-151.0,0.00019736,2]
[364915649,1749297718452,-151.0,0.00019736,2]
[364915650,1749297718478,-184.492524,0.00019736,2]
[364915651,1749297718508,-150.0,0.00019763,2]
[364915652,1749297718534,-1232.0,0.00019765,2]
[364915653,1749297718563,-150.0,0.0001977,2]
[364915654,1749297718592,-168.0,0.0001977,2]
[364915655,1749297718619,-151.0,0.00019783,2]
[364915656,1749297718645,-151.0,0.00019783,2]
[364915657,1749297718673,-150.0,0.00019792,2]
[364915658,1749297718700,-150.0,0.00019794,2]
[364915659,1749297718728,-150.0,0.00019798,2]
[364915660,1749297718753,-151.0,0.000198,2]
[364915661,1749297718780,-364.623123,0.000198,2]
[364915662,1749297718806,-364.623117,0.000198,2]
[364915663,1749297718833,-2900.0,0.000198,7]
[364915664,1749297718860,-1000.0,0.000198,2]
[364915665,1749297718886,-1000.0,0.000198,2]
[364915666,1749297718913,-1000.0,0.000198,2]
[364915667,1749297718938,-1000.0,0.000198,2]
[364915668,1749297718964,-1000.0,0.000198,2]
[364915669,1749297718989,-1000.0,0.000198,2]
[364915670,1749297719015,-1000.0,0.000198,2]
[364915671,1749297719041,-1000.0,0.000198,2]
[364915672,1749297719068,-1000.0,0.000198,2]
[364915673,1749297719093,-1000.0,0.000198,2]
[364915674,1749297719120,-1491.0,0.000198,2]
[364915675,1749297719146,-1000.0,0.000198,2]
[364915676,1749297719172,-1000.0,0.000198,2]
[364915677,1749297719200,-150.0,0.00019802,2]
[364915678,1749297719226,-168.0,0.00019803,2]
[364915679,1749297719256,-150.0,0.00019806,2]
[364915680,1749297719284,-1000.0,0.00019807,2]
[364915681,1749297719313,-150.0,0.00019807,2]
[364915682,1749297719343,-168.0,0.00019807,2]
[364915683,1749297719372,-300.32,0.00019808,2]
[364915684,1749297719400,-150.0,0.00019811,2]
[364915685,1749297719428,-150.0,0.00019812,2]
[364915686,1749297719457,-836.0,0.00019818,2]
[364915687,1749297719484,-150.0,0.0001982,2]
[364915688,1749297719513,-304.19,0.00019821,2]
[364915689,1749297719541,-301.77,0.00019821,2]
[364915690,1749297719568,-162.43,0.00019822,2]
[364915691,1749297719596,-168.0,0.00019825,2]
[364915692,1749297719624,-150.0,0.00019829,2]
[364915693,1749297719652,-200.0,0.00019839,2]
[364915694,1749297719679,-168.0,0.0001984,2]
[364915695,1749297719707,-150.0,0.00019845,2]
[364915696,1749297719736,-150.0,0.00019846,2]
[364915697,1749297719762,-172.5461113,0.00019847,2]
[364915698,1749297719790,-500.0,0.00019849,2]
[364915699,1749297720005,-151.0,0.00019849,2]
[364915700,1749297720035,-157.82470807,0.00019849,2]
[364915701,1749297720064,-1957.856,0.00019849,2]
[364915702,1749297720090,-151.0,0.00019849,2]
[364915703,1749297720118,-500.0,0.00019849,2]
[364915704,1749297720145,-1200.0,0.00019849,2]